fUSD/lending_fUSD_20250521
["ID","MTS","AMOUNT","RATE_DAILY","PERIOD"]
[361852608,1747840247278,-500.0,0.00041095,10]
[361852609,1747840247289,-500.0,0.00041095,10]
[361852610,1747840247299,-500.0,0.00041095,10]
[361852611,1747840247310,-500.0,0.00041095,10]
[361852613,1747840247320,-500.0,0.00041095,10]
[361852615,1747840247330,-500.0,0.00041095,10]
[361852617,1747840247341,-500.0,0.00041095,10]
[361852619,1747840247351,-500.0,0.00041095,10]
[361852621,1747840247362,-365.94695209,0.00041095,10]
[361852623,1747840247375,-151.0,0.00041095,14]
[361852625,1747840247386,-500.0,0.00041095,2]
[361852627,1747840247397,-500.0,0.00041095,2]
[361852629,1747840247407,-500.0,0.00041095,2]
[361852631,1747840247420,-500.0,0.00041095,2]
[361852633,1747840247432,-500.0,0.00041095,2]
[361852635,1747840247443,-500.0,0.00041095,2]
[361852638,1747840247453,-636.02228066,0.00041095,2]
[361852640,1747840247464,-591.09,0.00041095,120]
[361852642,1747840247474,-591.09,0.00041095,120]
[361852644,1747840247484,-591.09,0.00041095,120]
[361852646,1747840247495,-591.09,0.00041095,120]
[361852648,1747840247504,-591.09,0.00041095,120]
[361852650,1747840247515,-591.09,0.00041095,120]
[361852652,1747840247530,-591.09,0.00041095,120]
[361852654,1747840247539,-591.09,0.00041095,120]
[361852656,1747840247549,-591.09,0.00041095,120]
[361852658,1747840247559,-591.09,0.00041095,120]
[361852660,1747840247569,-591.09,0.00041095,120]
[361852662,1747840247579,-591.09,0.00041095,120]
[361852664,1747840247589,-591.09,0.00041095,120]
[361852666,1747840247599,-591.09,0.00041095,120]
[361852668,1747840247609,-591.09,0.00041095,120]
[361852671,1747840247624,-591.09,0.00041095,120]
[361852673,1747840247634,-591.09,0.00041095,120]
[361852675,1747840247645,-591.09,0.00041095,120]
[361852677,1747840247655,-591.09,0.00041095,120]
[361852679,1747840247666,-591.09,0.00041095,120]
[361852681,1747840247680,-591.09,0.00041095,120]
[361852684,1747840247690,-591.09,0.00041095,120]
[361852686,1747840247703,-591.09,0.00041095,120]
[361852688,1747840247714,-591.2569358,0.00041095,120]
[361852690,1747840247726,-240.214124,0.00041095,14]
[361852692,1747840247738,-235.25,0.00041095,14]
[361852694,1747840247749,-151.0,0.00041095,14]
[361852696,1747840247761,-151.0,0.00041095,14]
[361852698,1747840247772,-151.0,0.00041095,14]
[361852701,1747840247784,-151.0,0.00041095,14]
[361852703,1747840247795,-150.0,0.00041095,2]
[361852705,1747840247807,-420.0,0.00041095,2]
[361852707,1747840247818,-304.72465248,0.00041095,2]
[361852709,1747840247829,-420.0,0.00041095,2]
[361852711,1747840247839,-420.0,0.00041095,2]
[361852713,1747840247850,-420.0,0.00041095,2]
[361852715,1747840247860,-420.0,0.00041095,2]
[361852717,1747840247870,-420.0,0.00041095,2]
[361852719,1747840247880,-420.0,0.00041095,2]
[361852721,1747840247891,-420.0,0.00041095,2]
[361852723,1747840247902,-420.0,0.00041095,2]
[361852725,1747840247912,-420.0,0.00041095,2]
[361852727,1747840247929,-500.0,0.00041095,2]
[361852729,1747840247939,-420.0,0.00041095,2]
[361852731,1747840247950,-420.0,0.00041095,2]
[361852734,1747840247963,-420.0,0.00041095,2]
[361852736,1747840247973,-420.0,0.00041095,2]
[361852738,1747840247984,-420.0,0.00041095,2]
[361852740,1747840247995,-342.29810468,0.00041095,2]
[361852742,1747840248007,-467.85504515,0.00041095,30]
[361852744,1747840248018,-500.0,0.00041096,5]
[361852746,1747840248033,-200.0,0.00041096,10]
[361852748,1747840248051,-5000.0,0.00041096,30]
[361852750,1747840248061,-262863.53,0.00041096,60]
[361852752,1747840248071,-500.0,0.00041096,30]
[361852755,1747840248081,-500.0,0.00041096,30]
[361852757,1747840248097,-500.0,0.00041096,30]
[361852759,1747840248108,-500.0,0.00041096,30]
[361852761,1747840248118,-500.0,0.00041096,30]
[361852763,1747840248128,-500.0,0.00041096,30]
[361852765,1747840248139,-500.0,0.00041096,30]
[361852767,1747840248149,-500.0,0.00041096,30]
[361852769,1747840248160,-500.0,0.00041096,30]
[361852772,1747840248172,-500.0,0.00041096,30]
[361852774,1747840248182,-500.0,0.00041096,30]
[361852776,1747840248193,-500.0,0.00041096,30]
[361852778,1747840248204,-500.0,0.00041096,30]
[361852780,1747840248214,-500.0,0.00041096,30]
[361852782,1747840248225,-500.0,0.00041096,30]
[361852784,1747840248236,-500.0,0.00041096,30]
[361852786,1747840248246,-500.0,0.00041096,30]
[361852788,1747840248257,-500.0,0.00041096,30]
[361852790,1747840248267,-500.0,0.00041096,30]
[361852792,1747840248278,-500.0,0.00041096,30]
[361852794,1747840248290,-500.0,0.00041096,30]
[361852796,1747840248300,-500.0,0.00041096,30]
[361852798,1747840248311,-500.0,0.00041096,30]
[361852800,1747840248321,-500.0,0.00041096,30]
[361852802,1747840248332,-500.0,0.00041096,30]
[361852804,1747840248341,-500.0,0.00041096,30]
[361852806,1747840248351,-500.0,0.00041096,30]
[361852809,1747840248362,-500.0,0.00041096,30]
[361852810,1747840248372,-500.0,0.00041096,30]
[361852811,1747840248382,-500.0,0.00041096,30]
[361852813,1747840248392,-500.0,0.00041096,30]
[361852814,1747840248403,-500.0,0.00041096,30]
[361852815,1747840248413,-500.0,0.00041096,30]
[361852816,1747840248428,-500.0,0.00041096,30]
[361852817,1747840248439,-500.0,0.00041096,30]
[361852818,1747840248449,-500.0,0.00041096,30]
[361852819,1747840248461,-500.0,0.00041096,30]
[361852820,1747840248473,-500.0,0.00041096,30]
[361852821,1747840248484,-500.0,0.00041096,30]
[361852822,1747840248494,-500.0,0.00041096,30]
[361852823,1747840248504,-500.0,0.00041096,30]
[361852824,1747840248516,-500.0,0.00041096,30]
[361852825,1747840248527,-500.0,0.00041096,30]
[361852826,1747840248542,-500.0,0.00041096,30]
[361852827,1747840248552,-500.0,0.00041096,30]
[361852828,1747840248562,-500.0,0.00041096,30]
[361852829,1747840248572,-500.0,0.00041096,30]
[361852830,1747840248582,-500.0,0.00041096,30]
[361852831,1747840248592,-500.0,0.00041096,30]
[361852832,1747840248602,-500.0,0.00041096,30]
[361852833,1747840248612,-500.0,0.00041096,30]
[361852834,1747840248622,-500.0,0.00041096,30]
[361852835,1747840248632,-500.0,0.00041096,30]
[361852836,1747840248642,-500.0,0.00041096,30]
[361852837,1747840248652,-500.0,0.00041096,30]
[361852838,1747840248663,-500.0,0.00041096,30]
[361852839,1747840248675,-500.0,0.00041096,30]
[361852840,1747840248685,-500.0,0.00041096,30]
[361852841,1747840248696,-500.0,0.00041096,30]
[361852842,1747840248706,-500.0,0.00041096,30]
[361852843,1747840248717,-500.0,0.00041096,30]
[361852844,1747840248727,-500.0,0.00041096,30]
[361852845,1747840248737,-500.0,0.00041096,30]
[361852846,1747840248748,-500.0,0.00041096,30]
[361852847,1747840248758,-500.0,0.00041096,30]
[361852848,1747840248768,-500.0,0.00041096,30]
[361852849,1747840248779,-500.0,0.00041096,30]
[361852850,1747840248790,-586.0,0.00041096,30]
[361852851,1747840248801,-2000.0,0.00041096,120]
[361852852,1747840248811,-2000.0,0.00041096,120]
[361852853,1747840248821,-2000.0,0.00041096,120]
[361852854,1747840248831,-2000.0,0.00041096,120]
[361852855,1747840248842,-2000.0,0.00041096,120]
[361852856,1747840248852,-2000.0,0.00041096,120]
[361852857,1747840248862,-2000.0,0.00041096,120]
[361852858,1747840248873,-2000.0,0.00041096,120]
[361852859,1747840248883,-2000.0,0.00041096,120]
[361852860,1747840248893,-2000.0,0.00041096,120]
[361852861,1747840248903,-2000.0,0.00041096,120]
[361852862,1747840248916,-248.0,0.00041096,120]
[361852863,1747840248930,-813.479252,0.00041096,14]
[361852864,1747840248940,-813.479252,0.00041096,14]
[361852865,1747840248951,-813.479252,0.00041096,14]
[361852866,1747840248961,-813.479252,0.00041096,14]
[361852867,1747840248972,-813.479252,0.00041096,14]
[361852868,1747840248982,-1158.81,0.00041096,2]
[361852869,1747840248993,-170.1,0.00041096,2]
[361852870,1747840249004,-150.0,0.00041096,2]
[361852871,1747840249014,-906.22,0.00041096,2]
[361852872,1747840249025,-453.23,0.00041096,2]
[361852873,1747840249035,-453.23,0.00041096,2]
[361852874,1747840249045,-453.23,0.00041096,2]
[361852875,1747840249055,-905.86,0.00041096,2]
[361852876,1747840249065,-249.0069274,0.00041096,31]
[361852877,1747840249075,-157.66,0.000411,2]
[361852878,1747840249085,-451.67,0.000411,2]
[361852879,1747840249095,-267.17,0.000411,2]
[361852880,1747840249106,-11208.61,0.000411,2]
[361852881,1747840249116,-1056.54,0.000411,2]
[361852882,1747840249127,-1507.0,0.000411,2]
[361852883,1747840249136,-828.2248482,0.00041103,2]
[361852884,1747840249146,-150.0,0.00041128,30]
[361852885,1747840249156,-1441.14,0.00041133,30]
[361852886,1747840249166,-1441.14,0.00041133,30]
[361852887,1747840249179,-1000.0,0.00041137,14]
[361852888,1747840249189,-150.0,0.00041154,14]
[361852889,1747840249199,-150.0,0.00041165,14]
[361852890,1747840249209,-703.0,0.0004117,120]
[361852891,1747840249219,-420.0,0.0004117,120]
[361852892,1747840249229,-963.0,0.0004117,120]
[361852893,1747840249239,-1577.0,0.0004117,120]
[361852894,1747840249249,-703.0,0.0004118,120]
[361852895,1747840249259,-420.0,0.0004118,120]
[361852896,1747840249268,-963.0,0.0004118,120]
[361852897,1747840249278,-703.0,0.0004118,120]
[361852898,1747840249288,-420.0,0.0004118,120]
[361852899,1747840249298,-963.0,0.0004118,120]
[361852900,1747840249308,-1577.0,0.0004118,120]
[361852901,1747840249318,-1577.0,0.0004118,120]
[361852902,1747840249327,-703.0,0.0004119,120]
[361852903,1747840249337,-420.0,0.0004119,120]
[361852904,1747840249347,-963.0,0.0004119,120]
[361852905,1747840249357,-703.0,0.0004119,120]
[361852906,1747840249369,-420.0,0.0004119,120]
[361852907,1747840249379,-963.0,0.0004119,120]
[361852908,1747840249390,-1577.0,0.0004119,120]
[361852909,1747840249400,-1577.0,0.0004119,120]
[361852910,1747840249411,-150.0,0.00041195,14]
[361852911,1747840249425,-150.0,0.00041199,30]
[361852912,1747840249435,-33443.1,0.000412,7]
[361852913,1747840249446,-151.0,0.000412,14]
[361852914,1747840249457,-150.0,0.00041212,2]
[361852915,1747840249467,-1000.0,0.0004122,14]
[361852916,1747840249478,-150.0,0.00041261,14]
[361852917,1747840249488,-500.0,0.00041268,60]
[361852918,1747840249497,-150.0,0.0004127,30]
[361852919,1747840249507,-455.57,0.00041283,120]
[361852920,1747840249517,-2110.0,0.000413,30]
[361852921,1747840249534,-150.0,0.00041309,2]
[361852922,1747840249548,-249.6173952,0.0004131,14]
[361852923,1747840249558,-150.0,0.00041312,120]
[361852924,1747840249568,-733.14110423,0.00041321,120]
[361852925,1747840249578,-309.84,0.00041321,120]
[361852926,1747840249588,-311.04,0.00041321,120]
[361852927,1747840249597,-720.94635521,0.00041321,120]
[361852928,1747840249607,-304.28,0.00041321,120]
[361852929,1747840249616,-313.08,0.00041321,120]
[361852930,1747840249626,-720.3658069,0.00041321,120]
[361852931,1747840249636,-306.88,0.00041321,120]
[361852932,1747840249646,-746.50148337,0.00041321,120]
[361852933,1747840249656,-336.04900902,0.00041321,120]
[361852934,1747840249666,-746.38232121,0.00041321,120]
[361852935,1747840249677,-621.48692111,0.00041321,120]
[361852936,1747840249687,-150.0,0.00041329,120]
[361852937,1747840249699,-150.0,0.00041342,30]
[361852938,1747840249710,-150.0,0.00041342,30]
[361852939,1747840249719,-150.0,0.00041342,30]
[361852940,1747840249731,-1000.0,0.00041344,14]
[361852941,1747840249740,-5485.95917489,0.00041358,13]
[361852942,1747840249750,-1000.0,0.0004136,14]
[361852943,1747840249759,-1000.0,0.00041367,14]
[361852944,1747840249769,-1000.0,0.00041368,14]
[361852945,1747840249779,-150.0,0.00041385,14]
[361852946,1747840249788,-150.0,0.00041399,2]
[361852947,1747840249798,-157.66,0.000414,2]
[361852948,1747840249807,-451.67,0.000414,2]
[361852949,1747840249817,-267.17,0.000414,2]
[361852950,1747840249827,-11208.61,0.000414,2]
[361852951,1747840249836,-1056.54,0.000414,2]
[361852952,1747840249846,-151.0,0.000414,14]
[361852953,1747840249855,-151.0,0.000414,14]
[361852954,1747840249865,-151.0,0.000414,14]
[361852955,1747840249875,-292.161556,0.000414,14]
[361852956,1747840249884,-813.479252,0.000414,14]
[361852957,1747840249894,-151.33064016,0.00041403,2]
[361852958,1747840249906,-1441.14,0.00041407,30]
[361852959,1747840249915,-1441.14,0.00041407,30]
[361852960,1747840249926,-150.0,0.00041413,30]
[361852961,1747840249936,-1000.0,0.00041438,14]
[361852962,1747840249946,-150.0,0.00041446,2]
[361852963,1747840249956,-151.0,0.00041457,14]
[361852964,1747840249970,-151.0,0.00041457,14]
[361852965,1747840249981,-151.0,0.00041457,14]
[361852966,1747840249992,-151.0,0.00041457,14]
[361852967,1747840250002,-813.479252,0.00041457,14]
[361852968,1747840250011,-490323.49897291,0.00041457,120]
[361852969,1747840250033,-252.58751994,0.00041457,120]
[361852970,1747840250045,-5123.24822316,0.00041457,120]
[361852971,1747840250057,-11012.2923945,0.00041457,120]
[361852972,1747840250093,-528.00587479,0.00041096,14]
[361852973,1747840250105,-285.47337721,0.00041096,14]
[361852974,1747840250115,-23760.94370576,0.00041457,120]
[361852975,1747840250126,-635.0,0.00041457,120]
[361852976,1747840250138,-324756.3207794,0.00041457,120]
[361852977,1747840250150,-716676.40855939,0.00041457,120]
[361852978,1747840250160,-1000.0,0.00041458,14]
[361852979,1747840250171,-935.0,0.00041468,2]
[361852980,1747840250181,-1309.0,0.00041468,2]
[361852981,1747840250190,-799.0,0.00041468,2]
[361852982,1747840250201,-554.0,0.00041468,2]
[361852983,1747840250212,-585.0,0.00041468,2]
[361852984,1747840250222,-921.0,0.00041468,2]
[361852985,1747840250232,-1460.0,0.00041468,2]
[361852986,1747840250242,-1256.0,0.00041468,2]
[361852987,1747840250253,-150.0,0.00041484,30]
[361852988,1747840250263,-150.0,0.00041491,2]
[361852989,1747840250273,-150.0,0.00041492,14]
[361852990,1747840250282,-150.0,0.00041494,2]
[361852991,1747840250292,-1000.0,0.00041513,14]
[361852992,1747840250302,-150.0,0.00041515,2]
[361852993,1747840250312,-150.0,0.00041516,2]
[361852994,1747840250322,-150.0,0.00041556,30]
[361852995,1747840250332,-1000.0,0.00041571,14]
[361852996,1747840250342,-12661.32833142,0.0004158,2]
[361852997,1747840250352,-5030.78056947,0.00041582,30]
[361852998,1747840250361,-150.0,0.00041589,2]
[361852999,1747840250371,-1000.0,0.00041589,14]
[361853000,1747840250380,-150.0,0.0004159,2]
[361853001,1747840250391,-250.52058,0.000416,120]
[361853002,1747840250400,-1000.0,0.000416,2]
[361853003,1747840250414,-150.0,0.00041627,30]
[361853004,1747840250428,-150.0,0.00041637,14]
[361853005,1747840250438,-207.0,0.00041641,23]
[361853006,1747840250448,-458.25,0.00041644,30]
[361853007,1747840250457,-458.25,0.00041644,30]
[361853008,1747840250467,-805.46,0.00041644,30]
[361853009,1747840250477,-458.25,0.00041644,30]
[361853010,1747840250487,-805.46,0.00041644,30]
[361853011,1747840250497,-1561.4,0.00041644,30]
[361853012,1747840250507,-150.0,0.00041649,14]
[361853013,1747840250517,-150.0,0.00041652,2]
[361853014,1747840250527,-828.2248482,0.00041681,4]
[361853015,1747840250537,-1143.38,0.00041684,2]
[361853016,1747840250548,-1000.0,0.00041686,14]
[361853017,1747840250558,-150.0,0.00041699,30]
[361853018,1747840250569,-150.0,0.00041734,2]
[361853019,1747840250580,-150.0,0.00041734,30]
[361853020,1747840250590,-150.0,0.00041734,30]
[361853021,1747840250600,-150.0,0.00041735,2]
[361853022,1747840250614,-200.0,0.00041737,120]
[361853023,1747840250626,-150.0,0.0004174,2]
[361853024,1747840250636,-1000.0,0.00041749,14]
[361853025,1747840250646,-150.0,0.00041751,2]
[361853026,1747840250655,-150.0,0.0004177,30]
[361853027,1747840250665,-150.0,0.0004177,2]
[361853028,1747840250680,-150.0,0.00041776,14]
[361853029,1747840250690,-438.11143036,0.00041782,14]
[361853030,1747840250700,-150.0,0.00041786,30]
[361853031,1747840250710,-2368.64517057,0.00041786,30]
[361853032,1747840250719,-150.0,0.00041786,30]
[361853033,1747840250730,-8097.37601753,0.00041786,30]
[361853034,1747840250739,-199814.79881634,0.00041798,120]
[361853035,1747840250750,-3039.71399199,0.00041798,120]
[361853036,1747840250760,-9150.51269561,0.00041798,120]
[361853037,1747840250770,-551.39,0.000418,120]
[361853038,1747840250780,-735.61165861,0.000418,120]
[361853039,1747840250790,-99159.95487211,0.000418,120]
[361853040,1747840250803,-6025.61901896,0.000418,120]
[361853041,1747840250827,-338.4121633,0.00041096,14]
[361853042,1747840251549,-312.28000005,0.00035552,5]
[361853043,1747840251580,-952.99999995,0.00035552,5]
[361853044,1747840251590,-475.0670887,0.00041096,14]
[361853045,1747840251600,-813.479252,0.00041096,14]
[361853046,1747840251609,-813.479252,0.000414,14]
[361853047,1747840251619,-16.68748255,0.00041457,14]
[361853048,1747840251630,-796.79176945,0.00041457,14]
[361853049,1747840251640,-403.17922847,0.00041644,30]
[361853050,1747840251721,-55.07077153,0.00041644,30]
[361853051,1747840251731,-9211.51415777,0.000418,120]
[361853052,1747840251742,-1327.55,0.000418,120]
[361853053,1747840251754,-20460.55962999,0.000418,120]
[361853054,1747840251785,-2576.69999998,0.000418,120]
[361853055,1747840251797,-7643.0660277,0.000418,120]
[361853056,1747840251809,-900.32486575,0.000418,120]
[361853057,1747840251820,-2054.27000004,0.000418,120]
[361853058,1747840251832,-5679.38900001,0.000418,120]
[361853059,1747840322525,200.0,0.0002325,117]
[361853060,1747840495605,1699.78294222,0.0002325,120]
[361853061,1747840828482,-250.0,0.00015,2]
[361853062,1747840828505,-300.0,0.00017,2]
[361853063,1747840828528,-263.68242,0.00018059,2]
[361853064,1747840828552,-200.0,0.00019848,2]
[361853065,1747840828580,-200.0,0.00019865,2]
[361853066,1747840828604,-250.0,0.00019865,2]
[361853067,1747840828628,-250.0,0.00019865,2]
[361853068,1747840828651,-200.0,0.00019865,2]
[361853069,1747840828677,-200.0,0.00020187,2]
[361853071,1747840900193,160.19,0.00013699,2]
[361853072,1747841064883,16959.9043038,0.000115,2]
[361853073,1747841108993,30766.2232762,0.00012,2]
[361853074,1747841109025,979837.79333333,0.00012,2]
[361853075,1747841109051,979837.79333333,0.00012,2]
[361853076,1747841109078,680812.29898109,0.00012,2]
[361853077,1747841137523,29237.19304267,9e-05,2]
[361853079,1747841156543,6469.38595609,6.94e-05,2]
[361853080,1747841164211,591.31612324,8e-05,2]
[361853081,1747841168280,785.39436636,8e-05,2]
[361853082,1747841242133,251.89815739,0.000101,2]
[361853084,1747841276214,21046.1501282,0.0001,2]
[361853085,1747841279892,240644.15657829,0.00012,2]
[361853086,1747841279921,979837.79333333,0.00012,2]
[361853087,1747841279947,448773.85795392,0.00012,2]
[361853089,1747841293314,403.38225305,0.00011973,2]
[361853090,1747841295375,328.46784619,0.00011973,2]
[361853091,1747841295623,500.0,0.00011973,2]
[361853092,1747841316462,-289.6077989,0.00012521,2]
[361853093,1747841318837,-305.46995701,0.00012521,2]
[361853097,1747841322779,-183.53703632,0.00012521,2]
[361853098,1747841344594,500.0,0.00011973,2]
[361853113,1747841431686,-250.0,0.00013773,2]
[361853114,1747841431697,-962.50002892,0.000149,2]
[361853115,1747841431715,-684.04544367,0.000149,2]
[361853116,1747841431725,-200.0,0.00020064,2]
[361853117,1747841431736,-5000.0059811,0.00024,5]
[361853118,1747841431745,-485.44838114,0.00024,3]
[361853119,1747841431756,-203.08201271,0.000249,12]
[361853120,1747841431766,-200.0,0.00024955,2]
[361853121,1747841431775,-1266.085961,0.0002577,2]
[361853122,1747841431785,-203.08201253,0.000259,14]
[361853123,1747841431795,-1200.0,0.00025909,2]
[361853124,1747841431804,-200.0,0.00026217,2]
[361853125,1747841431814,-200.0,0.000264,2]
[361853126,1747841431824,-203.08201253,0.000269,16]
[361853127,1747841431833,-203.08201253,0.000279,18]
[361853128,1747841431843,-263.18554221,0.00028,60]
[361853129,1747841431852,-1680.0,0.00028167,2]
[361853130,1747841431862,-303.97,0.00028759,2]
[361853131,1747841431872,-203.08201253,0.000289,20]
[361853132,1747841431881,-182.61,0.00029268,2]
[361853133,1747841431891,-203.08201253,0.000299,21]
[361853134,1747841431902,-500.0,0.0003,30]
[361853135,1747841431913,-175.26,0.0003,2]
[361853136,1747841431924,-2351.0,0.00030622,2]
[361853137,1747841431934,-203.08201253,0.000309,23]
[361853138,1747841431944,-182.34,0.0003111,12]
[361853139,1747841431954,-956.92,0.0003111,10]
[361853140,1747841431965,-302.85,0.0003111,2]
[361853141,1747841431975,-300.0,0.0003111,2]
[361853142,1747841431985,-300.9,0.0003114,2]
[361853143,1747841431995,-301.85,0.00031629,2]
[361853144,1747841432005,-203.08201253,0.000319,25]
[361853145,1747841432014,-203.08201253,0.000329,27]
[361853146,1747841432025,-3384.24914812,0.000332,2]
[361853147,1747841432036,-1526.0,0.00033292,3]
[361853149,1747841432046,-250.0,0.00033419,2]
[361853151,1747841432056,-159.37,0.000335,31]
[361853153,1747841432067,-159.37,0.000335,31]
[361853155,1747841432077,-1327.82285057,0.00033672,6]
[361853156,1747841432087,-500.0,0.00033772,2]
[361853158,1747841432097,-12209.1017,0.00033772,2]
[361853159,1747841432108,-1000.0,0.00033772,2]
[361853160,1747841432118,-203.08201253,0.000339,29]
[361853161,1747841432128,-389.42,0.00034463,2]
[361853163,1747841432138,-500.0,0.00034612,2]
[361853165,1747841432148,-19915.57202842,0.00034622,2]
[361853171,1747841432204,-1907.91855991,0.00034622,2]
[361853173,1747841432222,-2076.50941167,0.00034622,2]
[361853175,1747841432233,-200.0,0.00034792,13]
[361853177,1747841432243,-200.0,0.00034792,13]
[361853179,1747841432254,-200.0,0.00034792,13]
[361853181,1747841432265,-200.0,0.00034792,13]
[361853183,1747841432277,-293.0,0.00034792,13]
[361853185,1747841432292,-895.17565933,0.000349,120]
[361853187,1747841432303,-203.08201253,0.000349,31]
[361853189,1747841432314,-1009.94,0.00035317,2]
[361853191,1747841432326,-5447.5854,0.00035358,2]
[361853193,1747841432337,-2294.8985657,0.000355,7]
[361853195,1747841432347,-291.67,0.000356,2]
[361853197,1747841432359,-194.04,0.00035665,120]
[361853199,1747841432370,-2271.089,0.000357,43]
[361853201,1747841432383,-159.37,0.000357,31]
[361853203,1747841432397,-159.37,0.000357,31]
[361853205,1747841432409,-159.37,0.000357,31]
[361853207,1747841432421,-159.37,0.000357,31]
[361853209,1747841432432,-1000.0,0.00035715,2]
[361853211,1747841432443,-1408.55,0.00035746,2]
[361853213,1747841432454,-164.9,0.00035822,2]
[361853215,1747841432468,-203.08201253,0.000359,33]
[361853217,1747841432479,-166.73,0.00035934,2]
[361853218,1747841432490,-259.28,0.00035934,120]
[361853220,1747841432500,-200.0,0.00036179,2]
[361853222,1747841432510,-150.0,0.00036218,2]
[361853224,1747841432521,-500.0,0.00036357,2]
[361853226,1747841432531,-163.22325592,0.00036357,2]
[361853228,1747841432542,-446.0,0.00036357,2]
[361853230,1747841432551,-646.169,0.00036357,2]
[361853232,1747841432561,-803.0,0.00036357,2]
[361853234,1747841432571,-585.0,0.00036357,2]
[361853236,1747841432581,-921.0,0.00036357,2]
[361853238,1747841432592,-554.0,0.00036357,2]
[361853240,1747841432601,-1460.0,0.00036357,2]
[361853242,1747841432612,-1258.0,0.00036357,2]
[361853244,1747841432623,-1150.0,0.00036357,2]
[361853246,1747841432633,-1309.0,0.00036357,2]
[361853248,1747841432643,-6834.0,0.00036357,2]
[361853250,1747841432652,-4047.0,0.00036357,2]
[361853252,1747841432663,-500.0,0.00036384,2]
[361853254,1747841432675,-446.0,0.00036384,2]
[361853256,1747841432686,-150.0,0.000364,3]
[361853258,1747841432695,-500.0,0.00036412,2]
[361853260,1747841432705,-446.0,0.00036412,2]
[361853262,1747841432717,-152.29395762,0.00036427,3]
[361853264,1747841432727,-500.0,0.00036439,2]
[361853266,1747841432737,-446.0,0.00036439,2]
[361853268,1747841432746,-446.0,0.00036467,2]
[361853270,1747841432756,-446.0,0.00036494,2]
[361853272,1747841432767,-191.93009051,0.000365,120]
[361853274,1747841432778,-500.0,0.000365,60]
[361853276,1747841432787,-446.0,0.00036521,2]
[361853278,1747841432797,-500.0,0.00036527,60]
[361853280,1747841432807,-446.0,0.00036549,2]
[361853282,1747841432816,-620.26,0.00036555,60]
[361853284,1747841432826,-155.0,0.00036555,2]
[361853286,1747841432836,-175.32,0.00036573,30]
[361853287,1747841432846,-446.0,0.00036576,2]
[361853288,1747841432856,-446.0,0.00036604,2]
[361853289,1747841432866,-3183.51,0.00036629,2]
[361853290,1747841432875,-446.0,0.00036631,2]
[361853291,1747841432885,-446.0,0.00036658,2]
[361853292,1747841432894,-446.0,0.00036686,2]
[361853293,1747841432904,-446.0,0.00036713,2]
[361853294,1747841432913,-270.8294,0.0003673,2]
[361853295,1747841432922,-446.0,0.00036741,2]
[361853296,1747841432932,-446.0,0.00036768,2]
[361853297,1747841432942,-446.0,0.00036795,2]
[361853298,1747841432952,-446.0,0.00036823,2]
[361853299,1747841432962,-1000.0,0.0003683,7]
[361853300,1747841432972,-446.0,0.0003685,2]
[361853301,1747841432982,-446.0,0.00036878,2]